fUST/lending_fUST_20250602
["ID","MTS","AMOUNT","RATE_DAILY","PERIOD"]
[363737438,1748855438714,-430.0,0.00016438,2]
[363737440,1748855438723,-430.0,0.00016438,2]
[363737442,1748855438733,-430.0,0.00016438,2]
[363737444,1748855438743,-430.0,0.00016438,2]
[363737446,1748855438753,-430.0,0.00016438,2]
[363737448,1748855438763,-1678.0,0.00016438,2]
[363737450,1748855438772,-430.0,0.00016438,2]
[363737452,1748855438782,-3462.76,0.00016438,2]
[363737454,1748855438792,-420.0,0.00016438,2]
[363737456,1748855438801,-2200.48,0.00016438,2]
[363737458,1748855438811,-430.0,0.00016438,2]
[363737460,1748855438821,-370.0,0.00016438,2]
[363737462,1748855438830,-500.0,0.00016438,2]
[363737464,1748855438840,-430.0,0.00016712,2]
[363737466,1748855438849,-430.0,0.00016712,2]
[363737468,1748855438859,-430.0,0.00016712,2]
[363737470,1748855438869,-430.0,0.00016712,2]
[363737472,1748855438879,-948.58,0.00016712,2]
[363737474,1748855438889,-430.0,0.00016712,2]
[363737476,1748855438898,-430.0,0.00016712,2]
[363737478,1748855438908,-348.14575542,0.00016712,2]
[363737480,1748855438918,-466.91,0.00016712,2]
[363737482,1748855438928,-341.56007821,0.00016712,2]
[363737485,1748855438939,-2119.88,0.00016712,2]
[363737487,1748855438948,-2637.84,0.00016712,2]
[363737489,1748855438958,-308.1015585,0.00016712,2]
[363737491,1748855438967,-421.2967104,0.00016712,2]
[363737493,1748855438976,-549.39,0.00016712,2]
[363737495,1748855438985,-430.0,0.00016712,2]
[363737497,1748855438996,-430.0,0.00016712,2]
[363737499,1748855439006,-430.0,0.00016712,2]
[363737501,1748855439015,-430.0,0.00016712,2]
[363737503,1748855439025,-430.0,0.00016712,2]
[363737505,1748855439034,-1678.0,0.00016712,2]
[363737507,1748855439044,-430.0,0.00016712,2]
[363737509,1748855439053,-3462.76,0.00016712,2]
[363737511,1748855439063,-2200.48,0.00016712,2]
[363737513,1748855439073,-430.0,0.00016712,2]
[363737515,1748855439082,-351.1622771,0.00016712,2]
[363737517,1748855439093,-168.19204084,0.00016796,2]
[363737519,1748855439103,-2273.43537249,0.00016893,2]
[363737521,1748855439112,-430.0,0.00016986,2]
[363737523,1748855439121,-430.0,0.00016986,2]
[363737524,1748855439131,-430.0,0.00016986,2]
[363737526,1748855439141,-948.58,0.00016986,2]
[363737528,1748855439151,-430.0,0.00016986,2]
[363737530,1748855439161,-466.91,0.00016986,2]
[363737533,1748855439171,-2119.88,0.00016986,2]
[363737535,1748855439182,-2637.84,0.00016986,2]
[363737537,1748855439191,-549.39,0.00016986,2]
[363737539,1748855439200,-430.0,0.00016986,2]
[363737540,1748855439210,-430.0,0.00016986,2]
[363737542,1748855439220,-1678.0,0.00016986,2]
[363737544,1748855439229,-430.0,0.00016986,2]
[363737546,1748855439239,-3462.76,0.00016986,2]
[363737548,1748855439249,-2200.48,0.00016986,2]
[363737550,1748855439258,-430.0,0.00016986,2]
[363737552,1748855439268,-430.0,0.00016993,2]
[363737554,1748855439278,-430.0,0.00016993,2]
[363737556,1748855439287,-430.0,0.00016993,2]
[363737558,1748855439297,-913.57,0.00016993,2]
[363737561,1748855439307,-743.73,0.00016993,2]
[363737563,1748855439316,-430.0,0.00016993,2]
[363737565,1748855439327,-430.0,0.00016993,2]
[363737567,1748855439337,-430.0,0.00016993,2]
[363737569,1748855439351,-430.0,0.00016993,2]
[363737571,1748855439364,-534.71364925,0.00016993,2]
[363737573,1748855439373,-430.0,0.00016993,2]
[363737575,1748855439383,-430.0,0.00016993,2]
[363737577,1748855439393,-430.0,0.00016993,2]
[363737579,1748855439403,-430.0,0.00016993,2]
[363737582,1748855439413,-430.0,0.00016993,2]
[363737585,1748855439422,-430.0,0.00016993,2]
[363737587,1748855439432,-430.0,0.00016993,2]
[363737590,1748855439441,-430.0,0.00016993,2]
[363737592,1748855439450,-444.80837693,0.00016993,2]
[363737594,1748855439459,-430.0,0.00016993,2]
[363737596,1748855439469,-430.0,0.00016993,2]
[363737598,1748855439479,-509.52289142,0.00016993,2]
[363737600,1748855439488,-430.0,0.00016993,2]
[363737602,1748855439498,-430.0,0.00016993,2]
[363737604,1748855439507,-430.0,0.00016993,2]
[363737606,1748855439517,-500.0,0.00016993,2]
[363737608,1748855439527,-472.60810396,0.00016993,2]
[363737610,1748855439537,-430.0,0.00016993,2]
[363737612,1748855439547,-430.0,0.00016993,2]
[363737614,1748855439556,-430.0,0.00016993,2]
[363737616,1748855439566,-430.0,0.00016993,2]
[363737618,1748855439576,-430.0,0.00016993,2]
[363737620,1748855439585,-430.0,0.00016993,2]
[363737622,1748855439595,-430.0,0.00016993,2]
[363737624,1748855439605,-430.0,0.00016993,2]
[363737626,1748855439614,-430.0,0.00016993,2]
[363737628,1748855439623,-430.0,0.00016993,2]
[363737630,1748855439632,-430.0,0.00016993,2]
[363737632,1748855439642,-430.0,0.00016993,2]
[363737634,1748855439651,-2187.94,0.00016993,2]
[363737636,1748855439661,-430.0,0.00016993,2]
[363737638,1748855439670,-430.0,0.00016994,2]
[363737640,1748855439679,-430.0,0.00016994,2]
[363737642,1748855439689,-450.0,0.00016994,2]
[363737644,1748855439699,-430.0,0.00016994,2]
[363737646,1748855439708,-430.0,0.00016994,2]
[363737648,1748855439718,-430.0,0.00016994,2]
[363737650,1748855439727,-430.0,0.00016994,2]
[363737652,1748855439736,-430.0,0.00016994,2]
[363737654,1748855439746,-430.0,0.00016994,2]
[363737656,1748855439755,-430.0,0.00016994,2]
[363737658,1748855439765,-430.0,0.00016994,2]
[363737660,1748855439775,-430.0,0.00016994,2]
[363737662,1748855439784,-430.0,0.00016994,2]
[363737664,1748855439794,-430.0,0.00016994,2]
[363737666,1748855439803,-430.0,0.00016994,2]
[363737668,1748855439814,-430.0,0.00016994,2]
[363737670,1748855439824,-430.0,0.00016994,2]
[363737672,1748855439833,-430.0,0.00016994,2]
[363737674,1748855439845,-404.864,0.00016994,2]
[363737676,1748855439855,-430.0,0.00016994,2]
[363737678,1748855439864,-430.0,0.00016994,2]
[363737680,1748855439874,-430.0,0.00016994,2]
[363737682,1748855439884,-430.0,0.00016994,2]
[363737684,1748855439894,-430.0,0.00016994,2]
[363737686,1748855439904,-415.94622086,0.00016994,2]
[363737688,1748855439914,-430.0,0.00016994,2]
[363737690,1748855439924,-430.0,0.00016994,2]
[363737692,1748855439933,-430.0,0.00016994,2]
[363737694,1748855439943,-377.39182041,0.00016994,2]
[363737696,1748855439954,-430.0,0.00016994,2]
[363737698,1748855439963,-430.0,0.00016994,2]
[363737700,1748855439974,-334.37116385,0.00016994,2]
[363737702,1748855439984,-430.0,0.00016994,2]
[363737704,1748855439994,-430.0,0.00016994,2]
[363737706,1748855440004,-430.0,0.00016994,2]
[363737708,1748855440014,-430.0,0.00016994,2]
[363737710,1748855440024,-430.0,0.00016994,2]
[363737712,1748855440033,-430.0,0.00016994,2]
[363737714,1748855440043,-430.0,0.00016994,2]
[363737716,1748855440053,-430.0,0.00016994,2]
[363737719,1748855440063,-430.0,0.00016994,2]
[363737721,1748855440072,-434.4994487,0.00016994,2]
[363737723,1748855440082,-430.0,0.00016994,2]
[363737724,1748855440092,-430.0,0.00016994,2]
[363737725,1748855440102,-430.0,0.00016994,2]
[363737726,1748855440113,-430.0,0.00016994,2]
[363737727,1748855440123,-440.76,0.00016994,2]
[363737728,1748855440133,-353.06130151,0.00016994,2]
[363737729,1748855440143,-400.0,0.00016994,2]
[363737730,1748855440153,-510.13031752,0.00016994,2]
[363737731,1748855440164,-430.0,0.00016994,2]
[363737732,1748855440174,-430.0,0.00016994,2]
[363737733,1748855440184,-430.0,0.00016994,2]
[363737734,1748855440193,-430.0,0.00016994,2]
[363737735,1748855440203,-426.29419272,0.00016994,2]
[363737736,1748855440212,-430.0,0.00016994,2]
[363737737,1748855440222,-430.0,0.00016994,2]
[363737738,1748855440231,-430.0,0.00016994,2]
[363737739,1748855440241,-430.0,0.00016994,2]
[363737740,1748855440251,-430.0,0.00016994,2]
[363737741,1748855440260,-430.0,0.00016994,2]
[363737742,1748855440270,-442.87053863,0.00016994,2]
[363737743,1748855440280,-223.49018546,0.00016994,2]
[363737755,1748855440290,-430.0,0.00016994,2]
[363737758,1748855440413,-430.0,0.00016994,2]
[363737760,1748855440423,-430.0,0.00016994,2]
[363737762,1748855440433,-405.3247281,0.00016994,2]
[363737764,1748855440443,-430.0,0.00016994,2]
[363737766,1748855440452,-432.19405226,0.00016994,2]
[363737768,1748855440461,-430.0,0.00016994,2]
[363737770,1748855440471,-400.0,0.00016994,2]
[363737772,1748855440480,-430.0,0.00016994,2]
[363737774,1748855440490,-430.0,0.00016994,2]
[363737776,1748855440499,-430.0,0.00016994,2]
[363737778,1748855440508,-521.16,0.00016994,2]
[363737780,1748855440518,-430.0,0.00016994,2]
[363737782,1748855440527,-435.19012237,0.00016994,2]
[363737784,1748855440536,-430.0,0.00016994,2]
[363737786,1748855440546,-430.0,0.00016994,2]
[363737788,1748855440555,-430.0,0.00016994,2]
[363737790,1748855440565,-437.76449362,0.00016994,2]
[363737792,1748855440575,-430.0,0.00016994,2]
[363737794,1748855440585,-414.26233174,0.00016994,2]
[363737796,1748855440595,-430.0,0.00016994,2]
[363737798,1748855440605,-430.0,0.00016994,2]
[363737800,1748855440614,-430.0,0.00016994,2]
[363737802,1748855440623,-430.0,0.00016994,2]
[363737804,1748855440632,-430.0,0.00016994,2]
[363737806,1748855440642,-430.0,0.00016994,2]
[363737808,1748855440651,-430.0,0.00016994,2]
[363737810,1748855440661,-430.0,0.00016994,2]
[363737812,1748855440670,-430.0,0.00016994,2]
[363737814,1748855440679,-430.0,0.00016994,2]
[363737816,1748855440689,-430.0,0.00016994,2]
[363737818,1748855440698,-430.0,0.00016994,2]
[363737820,1748855440707,-430.0,0.00016994,2]
[363737822,1748855440717,-411.46199855,0.00016994,2]
[363737824,1748855440726,-430.0,0.00016994,2]
[363737826,1748855440736,-434.76269645,0.00016994,2]
[363737828,1748855440745,-430.0,0.00016994,2]
[363737830,1748855440754,-430.0,0.00016994,2]
[363737832,1748855440763,-404.29426956,0.00016994,2]
[363737834,1748855440773,-430.0,0.00016994,2]
[363737836,1748855440782,-430.0,0.00016994,2]
[363737838,1748855440791,-430.0,0.00016994,2]
[363737840,1748855440800,-352.34221752,0.00016994,2]
[363737842,1748855440809,-430.0,0.00016994,2]
[363737844,1748855440819,-430.0,0.00016994,2]
[363737846,1748855440828,-430.0,0.00016994,2]
[363737848,1748855440837,-367.08960634,0.00016994,2]
[363737850,1748855440847,-434.95793077,0.00016994,2]
[363737852,1748855440856,-786.19,0.00016994,2]
[363737854,1748855440866,-430.0,0.00016994,2]
[363737856,1748855440875,-430.0,0.00016994,2]
[363737858,1748855440885,-430.0,0.00016994,2]
[363737860,1748855440895,-547.34600542,0.00016994,2]
[363737862,1748855440904,-430.0,0.00016994,2]
[363737864,1748855440914,-430.0,0.00016994,2]
[363737866,1748855440923,-430.0,0.00016994,2]
[363737868,1748855440933,-430.0,0.00016994,2]
[363737870,1748855440942,-370.0,0.00016994,2]
[363737872,1748855440952,-430.0,0.00016994,2]
[363737874,1748855440961,-430.0,0.00016994,2]
[363737876,1748855440971,-522.64445476,0.00016994,2]
[363737878,1748855440980,-430.0,0.00016994,2]
[363737880,1748855440990,-430.0,0.00016994,2]
[363737883,1748855441001,-430.0,0.00016994,2]
[363737885,1748855441010,-430.0,0.00016994,2]
[363737887,1748855441020,-434.04241686,0.00016994,2]
[363737889,1748855441030,-430.0,0.00016994,2]
[363737891,1748855441040,-430.0,0.00016994,2]
[363737893,1748855441049,-405.51872258,0.00016994,2]
[363737895,1748855441059,-431.6365481,0.00016994,2]
[363737897,1748855441068,-430.0,0.00016994,2]
[363737898,1748855441078,-430.0,0.00016994,2]
[363737901,1748855441088,-430.0,0.00016994,2]
[363737903,1748855441102,-388.94983136,0.00016994,2]
[363737905,1748855441111,-430.0,0.00016994,2]
[363737907,1748855441121,-430.0,0.00016994,2]
[363737909,1748855441130,-430.0,0.00016994,2]
[363737911,1748855441140,-430.0,0.00016994,2]
[363737912,1748855441149,-430.0,0.00016994,2]
[363737915,1748855441159,-430.0,0.00016994,2]
[363737917,1748855441169,-430.0,0.00016994,2]
[363737919,1748855441179,-430.0,0.00016994,2]
[363737921,1748855441189,-430.0,0.00016994,2]
[363737923,1748855441199,-430.0,0.00016994,2]
[363737925,1748855441208,-430.0,0.00016994,2]
[363737927,1748855441218,-430.0,0.00016994,2]
[363737929,1748855441226,-430.0,0.00016994,2]
[363737931,1748855441236,-430.0,0.00016994,2]
[363737933,1748855441245,-430.0,0.00016994,2]
[363737935,1748855441254,-430.0,0.00016994,2]
[363737937,1748855441263,-430.0,0.00016994,2]
[363737939,1748855441273,-500.0,0.00016994,2]
[363737941,1748855441282,-430.0,0.00016994,2]
[363737943,1748855441291,-467.42,0.00016994,2]
[363737945,1748855441300,-1221.34,0.00016994,2]
[363737947,1748855441310,-430.0,0.00016994,2]
[363737949,1748855441319,-430.0,0.00016994,2]
[363737951,1748855441329,-430.0,0.00016994,2]
[363737953,1748855441338,-430.0,0.00016994,2]
[363737955,1748855441352,-430.0,0.00016994,2]
[363737957,1748855441362,-505.32046801,0.00016994,2]
[363737959,1748855441371,-446.33880489,0.00016994,2]
[363737961,1748855441380,-430.0,0.00016994,2]
[363737963,1748855441391,-481.96345513,0.00016994,2]
[363737965,1748855441401,-401.90282876,0.00016994,2]
[363737967,1748855441410,-430.0,0.00016994,2]
[363737969,1748855441420,-430.0,0.00016994,2]
[363737971,1748855441431,-371.69531471,0.00016994,2]
[363737973,1748855441441,-430.0,0.00016994,2]
[363737975,1748855441451,-400.0,0.00016994,2]
[363737977,1748855441460,-350.01130421,0.00016994,2]
[363737979,1748855441470,-430.0,0.00016994,2]
[363737981,1748855441479,-430.0,0.00016994,2]
[363737983,1748855441489,-430.0,0.00016994,2]
[363737985,1748855441498,-500.0,0.00016994,2]
[363737987,1748855441508,-500.0,0.00016994,2]
[363737989,1748855441517,-430.0,0.00016994,2]
[363737991,1748855441526,-430.0,0.00016994,2]
[363737993,1748855441536,-642.42,0.00016994,2]
[363737995,1748855441545,-430.0,0.00016994,2]
[363737997,1748855441554,-867.22,0.00016994,2]
[363737999,1748855441563,-430.0,0.00016994,2]
[363738001,1748855441574,-400.0,0.00016994,2]
[363738003,1748855441583,-400.0,0.00016994,2]
[363738005,1748855441593,-430.0,0.00016994,2]
[363738007,1748855441604,-400.0,0.00016994,2]
[363738009,1748855441613,-430.0,0.00016994,2]
[363738010,1748855441622,-469.10966085,0.00016994,2]
[363738012,1748855441632,-420.0,0.00016994,2]
[363738014,1748855441641,-430.0,0.00016994,2]
[363738016,1748855441651,-430.0,0.00016994,2]
[363738018,1748855441660,-430.0,0.00016994,2]
[363738020,1748855441670,-430.0,0.00016994,2]
[363738022,1748855441679,-483.75,0.00016994,2]
[363738024,1748855441689,-370.0,0.00016994,2]
[363738026,1748855441698,-430.0,0.00016994,2]
[363738028,1748855441707,-430.0,0.00016994,2]
[363738030,1748855441717,-430.0,0.00016994,2]
[363738032,1748855441727,-374.45711979,0.00016994,2]
[363738034,1748855441737,-1032.44,0.00016994,2]
[363738036,1748855441746,-430.0,0.00016994,2]
[363738038,1748855441755,-430.0,0.00016994,2]
[363738040,1748855441764,-420.0,0.00016994,2]
[363738042,1748855441774,-315.19481354,0.00016994,2]
[363738044,1748855441783,-430.0,0.00016994,2]
[363738046,1748855441793,-548.78723948,0.00016994,2]
[363738048,1748855441802,-320.0,0.00016994,2]
[363738050,1748855441811,-455.94159709,0.00016994,2]
[363738052,1748855441821,-430.0,0.00016994,2]
[363738054,1748855441830,-9638.78,0.00016994,2]
[363738056,1748855441840,-332.53060911,0.00016994,2]
[363738058,1748855441850,-430.0,0.00016994,2]
[363738060,1748855441859,-567.58,0.00016994,2]
[363738062,1748855441868,-455.96145594,0.00016994,2]
[363738064,1748855441877,-201.36480667,0.00016994,2]
[363738066,1748855441886,-430.0,0.00016994,2]
[363738068,1748855441896,-3131.92,0.00016994,2]
[363738070,1748855441906,-490.01,0.00016994,2]
[363738072,1748855441916,-430.0,0.00016994,2]
[363738074,1748855441925,-430.0,0.00016994,2]
[363738076,1748855441934,-430.0,0.00016994,2]
[363738078,1748855441944,-430.0,0.00016994,2]
[363738080,1748855441953,-430.0,0.00016994,2]
[363738082,1748855441963,-376.8597173,0.00016994,2]
[363738083,1748855441972,-430.0,0.00016994,2]
[363738085,1748855441982,-924.44,0.00016994,2]
[363738087,1748855441991,-430.0,0.00016994,2]
[363738089,1748855442002,-430.0,0.00016994,2]
[363738091,1748855442011,-430.0,0.00016994,2]
[363738093,1748855442020,-1043.96,0.00016994,2]
[363738095,1748855442029,-430.0,0.00016994,2]
[363738096,1748855442038,-452.87921709,0.00016994,2]
[363738097,1748855442048,-430.0,0.00016994,2]
[363738098,1748855442057,-430.0,0.00016994,2]
[363738099,1748855442067,-430.0,0.00016994,2]
[363738100,1748855442077,-430.0,0.00016994,2]
[363738101,1748855442087,-430.0,0.00016994,2]
[363738102,1748855442097,-1000.0,0.00016994,2]
[363738103,1748855442107,-430.0,0.00016994,2]
[363738104,1748855442116,-430.0,0.00016994,2]
[363738105,1748855442126,-430.0,0.00016994,2]
[363738106,1748855442136,-430.0,0.00016994,2]
[363738107,1748855442145,-683.24,0.00016994,2]
[363738108,1748855442155,-430.0,0.00016994,2]
[363738109,1748855442165,-430.0,0.00016994,2]
[363738110,1748855442175,-551.49890558,0.00016995,2]
[363738111,1748855442184,-159.88896888,0.00016995,2]
[363738112,1748855442194,-1000.0,0.00016995,2]
[363738113,1748855442203,-1000.0,0.00016995,2]
[363738114,1748855442213,-562.49813785,0.00016996,2]
[363738115,1748855442223,-509.59,0.00016996,2]
[363738116,1748855442232,-430.0,0.00016996,2]
[363738117,1748855442241,-430.0,0.00016996,2]
[363738118,1748855442251,-430.0,0.00016996,2]
[363738119,1748855442261,-430.0,0.00016996,2]
[363738120,1748855442270,-392.23534825,0.00016996,2]
[363738121,1748855442279,-430.0,0.00016996,2]
[363738122,1748855442289,-430.0,0.00016996,2]
[363738123,1748855442299,-160.0,0.00016996,2]
[363738124,1748855442308,-1000.0,0.00016996,2]
[363738125,1748855442318,-1000.0,0.00016996,2]
[363738126,1748855442328,-430.0,0.00016997,2]
[363738127,1748855442337,-430.0,0.00016997,2]
[363738128,1748855442348,-522.0083934,0.00016997,2]
[363738129,1748855442362,-430.0,0.00016997,2]
[363738130,1748855442372,-430.0,0.00016997,2]
[363738132,1748855442382,-411.73862251,0.00016997,2]
[363738134,1748855442394,-430.0,0.00016997,2]
[363738137,1748855442403,-430.0,0.00016997,2]
[363738140,1748855442412,-494.91902335,0.00016997,2]
[363738142,1748855442422,-430.0,0.00016997,2]
[363738145,1748855442433,-430.0,0.00016997,2]
[363738147,1748855442442,-558.838351,0.00016997,2]
[363738149,1748855442452,-430.0,0.00016997,2]
[363738151,1748855442462,-430.0,0.00016997,2]
[363738153,1748855442472,-430.0,0.00016997,2]
[363738155,1748855442481,-430.0,0.00016997,2]
[363738156,1748855442490,-555.94,0.00016997,2]
[363738157,1748855442499,-430.0,0.00016997,2]
[363738159,1748855442509,-430.0,0.00016997,2]
[363738161,1748855442519,-430.0,0.00016997,2]
[363738164,1748855442529,-430.0,0.00016997,2]
[363738166,1748855442538,-430.0,0.00016997,2]
[363738168,1748855442547,-430.0,0.00016997,2]
[363738170,1748855442557,-430.0,0.00016997,2]
[363738172,1748855442567,-402.34893282,0.00016997,2]
[363738174,1748855442577,-430.0,0.00016997,2]
[363738176,1748855442586,-434.72631364,0.00016997,2]
[363738178,1748855442597,-430.0,0.00016997,2]
[363738180,1748855442606,-431.04514393,0.00016998,2]
[363738182,1748855442616,-1752.49892242,0.000171,2]
[363738184,1748855442625,-1752.49892233,0.000171,2]
[363738186,1748855442634,-1752.49892233,0.000171,2]
[363738189,1748855442643,-1752.49892233,0.000171,2]
[363738191,1748855442653,-1752.49892233,0.000171,2]
[363738193,1748855442662,-4480.71684623,0.00017118,2]
[363738195,1748855442672,-430.0,0.0001726,2]
[363738197,1748855442681,-430.0,0.0001726,2]
[363738199,1748855442690,-430.0,0.0001726,2]
[363738201,1748855442700,-948.58,0.0001726,2]
[363738214,1748855442795,-430.0,0.0001726,2]
[363738216,1748855442818,-466.91,0.0001726,2]
[363738218,1748855442827,-2119.88,0.0001726,2]
[363738220,1748855442837,-2637.84,0.0001726,2]
[363738222,1748855442847,-549.39,0.0001726,2]
[363738224,1748855442857,-430.0,0.0001726,2]
[363738226,1748855442866,-430.0,0.0001726,2]
[363738228,1748855442875,-1678.0,0.0001726,2]
[363738230,1748855442885,-430.0,0.0001726,2]
[363738233,1748855442895,-3462.76,0.0001726,2]
[363738235,1748855442904,-2200.48,0.0001726,2]
[363738237,1748855442915,-430.0,0.0001726,2]
[363738239,1748855442925,-430.0,0.00017267,2]
[363738241,1748855442934,-430.0,0.00017267,2]
[363738243,1748855442944,-913.57,0.00017267,2]
[363738245,1748855442953,-743.73,0.00017267,2]
[363738247,1748855442963,-430.0,0.00017267,2]
[363738249,1748855442973,-430.0,0.00017267,2]
[363738251,1748855442982,-430.0,0.00017267,2]
[363738253,1748855442991,-430.0,0.00017267,2]
[363738255,1748855443001,-430.0,0.00017267,2]
[363738257,1748855443010,-430.0,0.00017267,2]
[363738259,1748855443020,-197.70806257,0.00017267,2]
[363738261,1748855443030,-430.0,0.00017267,2]
[363738263,1748855443039,-430.0,0.00017267,2]
[363738265,1748855443049,-430.0,0.00017267,2]
[363738267,1748855443058,-430.0,0.00017267,2]
[363738269,1748855443067,-430.0,0.00017267,2]
[363738271,1748855443077,-430.0,0.00017267,2]
[363738274,1748855443086,-430.0,0.00017267,2]
[363738276,1748855443098,-430.0,0.00017267,2]
[363738278,1748855443108,-430.0,0.00017267,2]
[363738280,1748855443118,-430.0,0.00017267,2]
[363738282,1748855443127,-430.0,0.00017267,2]
[363738284,1748855443136,-430.0,0.00017267,2]
[363738286,1748855443146,-430.0,0.00017267,2]
[363738288,1748855443155,-430.0,0.00017267,2]
[363738290,1748855443164,-544.53434314,0.00017267,2]
[363738292,1748855443174,-430.0,0.00017267,2]
[363738294,1748855443184,-430.0,0.00017267,2]
[363738296,1748855443193,-430.0,0.00017267,2]
[363738298,1748855443202,-430.0,0.00017267,2]
[363738300,1748855443211,-430.0,0.00017267,2]
[363738302,1748855443221,-2187.94,0.00017267,2]
[363738304,1748855443230,-430.0,0.00017267,2]
[363738306,1748855443239,-500.0,0.00017267,2]
[363738308,1748855443248,-500.0,0.00017267,2]
[363738310,1748855443257,-500.0,0.00017267,2]
[363738312,1748855443266,-500.0,0.00017267,2]
[363738314,1748855443275,-500.0,0.00017267,2]
[363738316,1748855443285,-500.0,0.00017267,2]
[363738318,1748855443295,-500.0,0.00017267,2]
[363738320,1748855443304,-182.07317182,0.00017267,2]
[363738322,1748855443313,-500.0,0.00017267,2]
[363738324,1748855443323,-500.0,0.00017267,2]
[363738326,1748855443332,-500.0,0.00017267,2]
[363738328,1748855443342,-179.63988424,0.00017267,2]
[363738330,1748855443354,-500.0,0.00017267,2]
[363738332,1748855443363,-500.0,0.00017267,2]
[363738334,1748855443372,-430.0,0.00017268,2]
[363738336,1748855443382,-430.0,0.00017268,2]
[363738338,1748855443393,-430.0,0.00017268,2]
[363738340,1748855443402,-430.0,0.00017268,2]
[363738342,1748855443411,-430.0,0.00017268,2]
[363738344,1748855443421,-430.0,0.00017268,2]
[363738346,1748855443431,-430.0,0.00017268,2]
[363738348,1748855443441,-532.06063339,0.00017268,2]
[363738350,1748855443450,-430.0,0.00017268,2]
[363738352,1748855443459,-430.0,0.00017268,2]
[363738354,1748855443468,-430.0,0.00017268,2]
[363738356,1748855443477,-430.0,0.00017268,2]
[363738358,1748855443486,-558.52803603,0.00017268,2]
[363738360,1748855443495,-430.0,0.00017268,2]
[363738362,1748855443504,-430.0,0.00017268,2]
[363738364,1748855443513,-430.0,0.00017268,2]
[363738366,1748855443524,-430.0,0.00017268,2]
[363738368,1748855443533,-430.0,0.00017268,2]
[363738370,1748855443543,-430.0,0.00017268,2]
[363738372,1748855443552,-430.0,0.00017268,2]
[363738374,1748855443561,-430.0,0.00017268,2]
[363738376,1748855443571,-430.0,0.00017268,2]
[363738378,1748855443580,-430.0,0.00017268,2]
[363738380,1748855443590,-430.0,0.00017268,2]
[363738382,1748855443600,-430.0,0.00017268,2]
[363738384,1748855443610,-430.0,0.00017268,2]
[363738386,1748855443619,-430.0,0.00017268,2]
[363738388,1748855443629,-430.0,0.00017268,2]
[363738390,1748855443638,-354.4237377,0.00017268,2]
[363738392,1748855443648,-430.0,0.00017268,2]
[363738394,1748855443657,-430.0,0.00017268,2]
[363738396,1748855443666,-417.60700173,0.00017268,2]
[363738398,1748855443675,-430.0,0.00017268,2]
[363738400,1748855443685,-430.0,0.00017268,2]
[363738402,1748855443694,-430.0,0.00017268,2]
[363738404,1748855443704,-430.0,0.00017268,2]
[363738406,1748855443713,-430.0,0.00017268,2]
[363738408,1748855443722,-440.76,0.00017268,2]
[363738410,1748855443731,-430.0,0.00017268,2]
[363738412,1748855443741,-430.0,0.00017268,2]